{"text_format":"1","workbook":"xlsx","n_sheets":4,"sheets":["PRADŽIA","NAUDOJIMO INSTRUKCIJA","SKAIČIUOKLĖ","ATNAUJINIMAS"],"not_rendered":{"charts":1,"images":19,"macros":1,"external_links":1,"defined_names":0,"comments":0,"pivot_tables":0},"unopened":[],"bounds":{"document_bytes":16777216,"sheet_cells":100000,"rows_first":2000,"rows_last":500,"rows_between":2000,"halvings":0,"cell_chars":16384,"cell_head_chars":4096},"cells_cut":0,"cells_raw":0,"read":"whole","date_system":"1900"}

{"sheet":"PRADŽIA","index":0,"n_rows":0,"n_cols":0,"rows_kept":0,"cut":false,"hidden":false,"merged":[[0,17,4,21]]}

{"sheet":"NAUDOJIMO INSTRUKCIJA","index":1,"n_rows":0,"n_cols":0,"rows_kept":0,"cut":false,"hidden":false,"merged":[]}

{"sheet":"SKAIČIUOKLĖ","index":2,"n_rows":104,"n_cols":29,"rows_kept":104,"cut":false,"hidden":false,"merged":[[12,5,14,14],[32,9,32,14]]}
[null,null,null,null,null,null,null,null,null,null,null,null,null,null,null,null,null,null,null,null,null,null,null,"Duomenys \"helper\" stulpeliams",null,"Helper stulpeliai"]
[null,null,null,null,null,null,null,null,null,null,null,null,null,null,null,null,null,null,null,null,null,"Dropdown'o pasirinkimai",null,"Transporto rūšis","ŠESD emisija, t",null,"H1","H2","H3"]
[null,null,null,null,null,null,null,null,null,null,null,null,null,null,null,null,null,null,null,null,null,"Kelių transportas",null,"Kelių transportas",181.72,null,1,{"$f":"IF(X3=H$22,AA3,\"\")","v":1},{"$f":"IFERROR(SMALL(AB$3:AB$5,AA3),\"\")","v":1}]
[null,null,null,null,null,null,null,null,null,null,null,null,null,null,null,null,null,null,null,null,null,"Geležinkelių transportas",null,"Geležinkelių transportas",5.65,null,2,{"$f":"IF(X4=H$22,AA4,\"\")","v":""},{"$f":"IFERROR(SMALL(AB$3:AB$4,AA4),\"\")","v":""}]
[null,null,null,null,null,null,null,null,null,null,null,null,null,null,null,null,null,null,null,null,null,"Vidaus vandenų transportas",null,"Vidaus vandenų transportas",47.35,null,3,{"$f":"IF(X5=H$22,AA5,\"\")","v":""},{"$f":"IFERROR(SMALL(AB$3:AB$4,AA5),\"\")","v":""}]
[]
[]
[null,null,null,null,null,null,null,null,null,null,null,null,null,null,null,null,null,null,null,null,null,null,null,"Duomenys \"helper\" stulpeliams",null,"Helper stulpeliai"]
[null,null,null,null,null,null,null,null,null,null,null,null,null,null,null,null,null,null,null,null,null,null,null,"Transporto rūšis","Dyzelino sunaudojimas, t",null,"H1","H2","H3"]
[]
[null,null,null,null,null,null,null,null,null,null,null,null,null,null,null,null,null,null,null,null,null,"Kelių transportas",null,"Kelių transportas",181.72,null,1,{"$f":"IF(X11=H$26,AA11,\"\")","v":""},{"$f":"IFERROR(SMALL(AB$11:AB$13,AA11),\"\")","v":2}]
[null,null,null,null,null,null,null,null,null,null,null,null,null,null,null,null,null,null,null,null,null,"Geležinkelių transportas",null,"Geležinkelių transportas",5.65,null,2,{"$f":"IF(X12=H$26,AA12,\"\")","v":2},{"$f":"IFERROR(SMALL(AB$11:AB$13,AA12),\"\")","v":""}]
[null,null,null,null,null,"KROVININIO TRANSPORTO RŪŠIES REGULIAVIMO POVEIKIO VERTINIMO SKAIČIUOKLĖ",null,null,null,null,null,null,null,null,null,null,null,null,null,null,null,"Vidaus vandenų transportas",null,"Vidaus vandenų transportas",47.35,null,3,{"$f":"IF(X13=H$26,AA13,\"\")","v":""},""]
[]
[null,null,null,null,null,null,null,null,null,null,null,null,null,null,null,null,null,null,null,null,null,null,null,"Duomenys \"helper\" stulpeliams",null,"Helper stulpeliai"]
[null,null,null,null,null,null,null,null,null,null,null,null,null,null,null,null,null,null,null,null,null,"Dropdown'o pasirinkimai",null,"Transporto rūšis","ŠESD emisija, t",null,"H1","H2","H3"]
[null,null,null,null,null,"Metai","Numatyta reikšmė",2023,2024,2025,2026,2027,2028,2029,2030,null,null,null,null,null,null,"Kelių transportas",null,"Kelių transportas",181.72,null,1,{"$f":"IF(X17=I$22,AA17,\"\")","v":1},{"$f":"IFERROR(SMALL(AB$17:AB$19,AA17),\"\")","v":1}]
[null,null,null,null,null,null,null,null,null,null,null,null,null,null,null,null,null,null,null,null,null,"Geležinkelių transportas",null,"Geležinkelių transportas",5.65,null,2,{"$f":"IF(X18=I$22,AA18,\"\")","v":""},{"$f":"IFERROR(SMALL(AB$17:AB$18,AA18),\"\")","v":""}]
[null,null,null,null,null,null,null,null,null,null,null,null,null,null,null,null,null,null,null,null,null,"Vidaus vandenų transportas",null,"Vidaus vandenų transportas",47.35,null,3,{"$f":"IF(X19=I$22,AA19,\"\")","v":""},{"$f":"IFERROR(SMALL(AB$17:AB$18,AA19),\"\")","v":""}]
[null,null,null,null,null,"Perkeliamų krovinių apyvarta (mln. tkm) ","Įveskite"]
[]
[null,null,null,null,null,"*Bazinė krovininio transporto rūšis","Pasirinkite iš sąrašo","Kelių transportas","Kelių transportas","Kelių transportas","Kelių transportas","Kelių transportas","Kelių transportas","Kelių transportas","Kelių transportas",null,null,null,null,null,null,null,null,"Duomenys \"helper\" stulpeliams",null,"Helper stulpeliai"]
[null,null,null,null,null,null,null,null,null,null,null,null,null,null,null,null,null,null,null,null,null,null,null,"Transporto rūšis","Dyzelino sunaudojimas, t",null,"H1","H2","H3"]
[null,null,null,null,null,"Bazinio krovininio transporto ŠESD emisijos faktorius","Numatyta reikšmė",{"$f":"IFERROR(INDEX(Y3:Y5,AC3,COLUMNS(H24:H24)),\"\")","v":181.72},{"$f":"IFERROR(INDEX(Y17:Y19,AC17,COLUMNS(I24:I24)),\"\")","v":181.72},{"$f":"IFERROR(INDEX(Y30:Y32,AC30,COLUMNS(J24:J24)),\"\")","v":181.72},{"$f":"IFERROR(INDEX(Y43:Y45,AC43,COLUMNS(K24:K24)),\"\")","v":181.72},{"$f":"IFERROR(INDEX(Y56:Y58,AC56,COLUMNS(L24:L24)),\"\")","v":181.72},{"$f":"IFERROR(INDEX(Y69:Y71,AC69,COLUMNS(M24:M24)),\"\")","v":181.72},{"$f":"IFERROR(INDEX(Y82:Y84,AC82,COLUMNS(N24:N24)),\"\")","v":181.72},{"$f":"IFERROR(INDEX(Y95:Y97,AC95,COLUMNS(O24:O24)),\"\")","v":181.72},null,null,null,null,null,null,"Kelių transportas",null,"Kelių transportas",181.72,null,1,{"$f":"IF(X24=I$26,AA24,\"\")","v":""},{"$f":"IFERROR(SMALL(AB$24:AB$26,AA24),\"\")","v":2}]
[null,null,null,null,null,null,null,null,null,null,null,null,null,null,null,null,null,null,null,null,null,"Geležinkelių transportas",null,"Geležinkelių transportas",5.65,null,2,{"$f":"IF(X25=I$26,AA25,\"\")","v":2},{"$f":"IFERROR(SMALL(AB$24:AB$26,AA25),\"\")","v":""}]
[null,null,null,null,null,"*Projektinė krovininio transporto rūšis","Pasirinkite iš sąrašo","Geležinkelių transportas","Geležinkelių transportas","Geležinkelių transportas","Geležinkelių transportas","Geležinkelių transportas","Geležinkelių transportas","Geležinkelių transportas","Geležinkelių transportas",null,null,null,null,null,null,"Vidaus vandenų transportas",null,"Vidaus vandenų transportas",47.35,null,3,{"$f":"IF(X26=I$26,AA26,\"\")","v":""},{"$f":"IFERROR(SMALL(AB$24:AB$26,AA26),\"\")","v":""}]
[]
[null,null,null,null,null,"Projektinio krovininio transporto ŠESD emisijos faktorius","Numatyta reikšmė",{"$f":"IFERROR(INDEX(Y11:Y13,AC11,COLUMNS(H28:H28)),\"\")","v":5.65},{"$f":"IFERROR(INDEX(Y24:Y26,AC24,COLUMNS(I28:I28)),\"\")","v":5.65},{"$f":"IFERROR(INDEX(Y37:Y39,AC37,COLUMNS(J28:J28)),\"\")","v":5.65},{"$f":"IFERROR(INDEX(Y50:Y52,AC50,COLUMNS(K28:K28)),\"\")","v":5.65},{"$f":"IFERROR(INDEX(Y63:Y65,AC63,COLUMNS(L28:L28)),\"\")","v":5.65},{"$f":"IFERROR(INDEX(Y76:Y78,AC76,COLUMNS(M28:M28)),\"\")","v":5.65},{"$f":"IFERROR(INDEX(Y89:Y91,AC89,COLUMNS(N28:N28)),\"\")","v":5.65},{"$f":"IFERROR(INDEX(Y102:Y104,AC102,COLUMNS(O28:O28)),\"\")","v":5.65},null,null,null,null,null,null,null,null,"Duomenys \"helper\" stulpeliams",null,"Helper stulpeliai"]
[null,null,null,null,null,null,null,null,null,null,null,null,null,null,null,null,null,null,null,null,null,"Dropdown'o pasirinkimai",null,"Transporto rūšis","ŠESD emisija, t",null,"H1","H2","H3"]
[null,null,null,null,null,null,null,null,null,null,null,null,null,null,null,null,null,null,null,null,null,"Kelių transportas",null,"Kelių transportas",181.72,null,1,{"$f":"IF(X30=J$22,AA30,\"\")","v":1},{"$f":"IFERROR(SMALL(AB$30:AB$32,AA30),\"\")","v":1}]
[null,null,null,null,null,"ŠESD kiekio pokytis (kt CO2 ekv.)",null,{"$f":"H20*(H24-H28)/1000","v":0},{"$f":"I20*(I24-I28)/1000","v":0},{"$f":"J20*(J24-J28)/1000","v":0},0,0,0,0,0,null,null,null,null,null,null,"Geležinkelių transportas",null,"Geležinkelių transportas",5.65,null,2,{"$f":"IF(X31=J$22,AA31,\"\")","v":""},{"$f":"IFERROR(SMALL(AB$30:AB$31,AA31),\"\")","v":""}]
[null,null,null,null,null,"Kaupiamasis ŠESD kiekio pokytis (kt CO2 ekv.) ","Rezultatai",{"$f":"IFERROR(H31,0)","v":0},{"$f":"IFERROR(H32+I31, 0)","v":0},{"$f":"IFERROR(J31, 0)","v":0},{"$f":"IFERROR(J32+K31, 0)","v":0},0,0,0,0,null,null,null,null,null,null,"Vidaus vandenų transportas",null,"Vidaus vandenų transportas",47.35,null,3,{"$f":"IF(X32=J$22,AA32,\"\")","v":""},{"$f":"IFERROR(SMALL(AB$30:AB$31,AA32),\"\")","v":""}]
[null,null,null,null,null,"Suminis ŠESD kiekio pokytis (kt CO2 ekv.)",null,null,null,{"$f":"SUM(H31:O31)","v":0}]
[]
[null,null,null,null,null,null,null,null,null,null,null,null,null,null,null,null,null,null,null,null,null,null,null,"Duomenys \"helper\" stulpeliams",null,"Helper stulpeliai"]
[null,null,null,null,null,null,null,null,null,null,null,null,null,null,null,null,null,null,null,null,null,null,null,"Transporto rūšis","Dyzelino sunaudojimas, t",null,"H1","H2","H3"]
[null,null,null,null,null,null,null,null,null,null,null,null,null,null,null,null,null,null,null,null,null,"Kelių transportas",null,"Kelių transportas",181.72,null,1,{"$f":"IF(X37=J$26,AA37,\"\")","v":""},{"$f":"IFERROR(SMALL(AB$37:AB$39,AA37),\"\")","v":2}]
[null,null,null,null,null,null,null,null,null,null,null,null,null,null,null,null,null,null,null,null,null,"Geležinkelių transportas",null,"Geležinkelių transportas",5.65,null,2,{"$f":"IF(X38=J$26,AA38,\"\")","v":2},{"$f":"IFERROR(SMALL(AB$37:AB$39,AA38),\"\")","v":""}]
[null,null,null,null,null,null,null,null,null,null,null,null,null,null,null,null,null,null,null,null,null,"Vidaus vandenų transportas",null,"Vidaus vandenų transportas",47.35,null,3,{"$f":"IF(X39=J$26,AA39,\"\")","v":""},{"$f":"IFERROR(SMALL(AB$37:AB$39,AA39),\"\")","v":""}]
[]
[null,null,null,null,null,null,null,null,null,null,null,null,null,null,null,null,null,null,null,null,null,null,null,"Duomenys \"helper\" stulpeliams",null,"Helper stulpeliai"]
[null,null,null,null,null,null,null,null,null,null,null,null,null,null,null,null,null,null,null,null,null,"Dropdown'o pasirinkimai",null,"Transporto rūšis","ŠESD emisija, t",null,"H1","H2","H3"]
[null,null,null,null,null,null,null,null,null,null,null,null,null,null,null,null,null,null,null,null,null,"Kelių transportas",null,"Kelių transportas",181.72,null,1,{"$f":"IF(X43=K$22,AA43,\"\")","v":1},{"$f":"IFERROR(SMALL(AB$43:AB$45,AA43),\"\")","v":1}]
[null,null,null,null,null,null,null,null,null,null,null,null,null,null,null,null,null,null,null,null,null,"Geležinkelių transportas",null,"Geležinkelių transportas",5.65,null,2,{"$f":"IF(X44=K$22,AA44,\"\")","v":""},{"$f":"IFERROR(SMALL(AB$43:AB$44,AA44),\"\")","v":""}]
[null,null,null,null,null,null,null,null,null,null,null,null,null,null,null,null,null,null,null,null,null,"Vidaus vandenų transportas",null,"Vidaus vandenų transportas",47.35,null,3,{"$f":"IF(X45=K$22,AA45,\"\")","v":""},{"$f":"IFERROR(SMALL(AB$43:AB$44,AA45),\"\")","v":""}]
[]
[]
[null,null,null,null,null,null,null,null,null,null,null,null,null,null,null,null,null,null,null,null,null,null,null,"Duomenys \"helper\" stulpeliams",null,"Helper stulpeliai"]
[null,null,null,null,null,null,null,null,null,null,null,null,null,null,null,null,null,null,null,null,null,null,null,"Transporto rūšis","Dyzelino sunaudojimas, t",null,"H1","H2","H3"]
[null,null,null,null,null,null,null,null,null,null,null,null,null,null,null,null,null,null,null,null,null,"Kelių transportas",null,"Kelių transportas",181.72,null,1,{"$f":"IF(X50=K$26,AA50,\"\")","v":""},{"$f":"IFERROR(SMALL(AB$50:AB$52,AA50),\"\")","v":2}]
[null,null,null,null,null,null,null,null,null,null,null,null,null,null,null,null,null,null,null,null,null,"Geležinkelių transportas",null,"Geležinkelių transportas",5.65,null,2,{"$f":"IF(X51=K$26,AA51,\"\")","v":2},{"$f":"IFERROR(SMALL(AB$50:AB$52,AA51),\"\")","v":""}]
[null,null,null,null,null,null,null,null,null,null,null,null,null,null,null,null,null,null,null,null,null,"Vidaus vandenų transportas",null,"Vidaus vandenų transportas",47.35,null,3,{"$f":"IF(X52=K$26,AA52,\"\")","v":""},{"$f":"IFERROR(SMALL(AB$50:AB$52,AA52),\"\")","v":""}]
[null,null,null,null,null,"*Laikoma, kad geležinkelių transporte naudojamas dyzelinas."]
[null,null,null,null,null,null,null,null,null,null,null,null,null,null,null,null,null,null,null,null,null,null,null,"Duomenys \"helper\" stulpeliams",null,"Helper stulpeliai"]
[null,null,null,null,null,null,null,null,null,null,null,null,null,null,null,null,null,null,null,null,null,"Dropdown'o pasirinkimai",null,"Transporto rūšis","ŠESD emisija, t",null,"H1","H2","H3"]
[null,null,null,null,null,null,null,null,null,null,null,null,null,null,null,null,null,null,null,null,null,"Kelių transportas",null,"Kelių transportas",181.72,null,1,{"$f":"IF(X56=L$22,AA56,\"\")","v":1},{"$f":"IFERROR(SMALL(AB$56:AB$58,AA56),\"\")","v":1}]
[null,null,null,null,null,null,null,null,null,null,null,null,null,null,null,null,null,null,null,null,null,"Geležinkelių transportas",null,"Geležinkelių transportas",5.65,null,2,{"$f":"IF(X57=L$22,AA57,\"\")","v":""},{"$f":"IFERROR(SMALL(AB$56:AB$57,AA57),\"\")","v":""}]
[null,null,null,null,null,null,null,null,null,null,null,null,null,null,null,null,null,null,null,null,null,"Vidaus vandenų transportas",null,"Vidaus vandenų transportas",47.35,null,3,{"$f":"IF(X58=L$22,AA58,\"\")","v":""},{"$f":"IFERROR(SMALL(AB$56:AB$57,AA58),\"\")","v":""}]
[]
[]
[null,null,null,null,null,null,null,null,null,null,null,null,null,null,null,null,null,null,null,null,null,null,null,"Duomenys \"helper\" stulpeliams",null,"Helper stulpeliai"]
[null,null,null,null,null,null,null,null,null,null,null,null,null,null,null,null,null,null,null,null,null,null,null,"Transporto rūšis","Dyzelino sunaudojimas, t",null,"H1","H2","H3"]
[null,null,null,null,null,null,null,null,null,null,null,null,null,null,null,null,null,null,null,null,null,"Kelių transportas",null,"Kelių transportas",181.72,null,1,{"$f":"IF(X63=L$26,AA63,\"\")","v":""},{"$f":"IFERROR(SMALL(AB$63:AB$65,AA63),\"\")","v":2}]
[null,null,null,null,null,null,null,null,null,null,null,null,null,null,null,null,null,null,null,null,null,"Geležinkelių transportas",null,"Geležinkelių transportas",5.65,null,2,{"$f":"IF(X64=L$26,AA64,\"\")","v":2},{"$f":"IFERROR(SMALL(AB$63:AB$65,AA64),\"\")","v":""}]
[null,null,null,null,null,null,null,null,null,null,null,null,null,null,null,null,null,null,null,null,null,"Vidaus vandenų transportas",null,"Vidaus vandenų transportas",47.35,null,3,{"$f":"IF(X65=L$26,AA65,\"\")","v":""},{"$f":"IFERROR(SMALL(AB$63:AB$65,AA65),\"\")","v":""}]
[]
[null,null,null,null,null,null,null,null,null,null,null,null,null,null,null,null,null,null,null,null,null,null,null,"Duomenys \"helper\" stulpeliams",null,"Helper stulpeliai"]
[null,null,null,null,null,null,null,null,null,null,null,null,null,null,null,null,null,null,null,null,null,"Dropdown'o pasirinkimai",null,"Transporto rūšis","ŠESD emisija, t",null,"H1","H2","H3"]
[null,null,null,null,null,null,null,null,null,null,null,null,null,null,null,null,null,null,null,null,null,"Kelių transportas",null,"Kelių transportas",181.72,null,1,{"$f":"IF(X69=M$22,AA69,\"\")","v":1},{"$f":"IFERROR(SMALL(AB$69:AB$71,AA69),\"\")","v":1}]
[null,null,null,null,null,null,null,null,null,null,null,null,null,null,null,null,null,null,null,null,null,"Geležinkelių transportas",null,"Geležinkelių transportas",5.65,null,2,{"$f":"IF(X70=M$22,AA70,\"\")","v":""},{"$f":"IFERROR(SMALL(AB$69:AB$70,AA70),\"\")","v":""}]
[null,null,null,null,null,null,null,null,null,null,null,null,null,null,null,null,null,null,null,null,null,"Vidaus vandenų transportas",null,"Vidaus vandenų transportas",47.35,null,3,{"$f":"IF(X71=M$22,AA71,\"\")","v":""},{"$f":"IFERROR(SMALL(AB$69:AB$70,AA71),\"\")","v":""}]
[]
[]
[null,null,null,null,null,null,null,null,null,null,null,null,null,null,null,null,null,null,null,null,null,null,null,"Duomenys \"helper\" stulpeliams",null,"Helper stulpeliai"]
[null,null,null,null,null,null,null,null,null,null,null,null,null,null,null,null,null,null,null,null,null,null,null,"Transporto rūšis","Dyzelino sunaudojimas, t",null,"H1","H2","H3"]
[null,null,null,null,null,null,null,null,null,null,null,null,null,null,null,null,null,null,null,null,null,"Kelių transportas",null,"Kelių transportas",181.72,null,1,{"$f":"IF(X76=M$26,AA76,\"\")","v":""},{"$f":"IFERROR(SMALL(AB$76:AB$78,AA76),\"\")","v":2}]
[null,null,null,null,null,null,null,null,null,null,null,null,null,null,null,null,null,null,null,null,null,"Geležinkelių transportas",null,"Geležinkelių transportas",5.65,null,2,{"$f":"IF(X77=M$26,AA77,\"\")","v":2},{"$f":"IFERROR(SMALL(AB$76:AB$78,AA77),\"\")","v":""}]
[null,null,null,null,null,null,null,null,null,null,null,null,null,null,null,null,null,null,null,null,null,"Vidaus vandenų transportas",null,"Vidaus vandenų transportas",47.35,null,3,{"$f":"IF(X78=M$26,AA78,\"\")","v":""},{"$f":"IFERROR(SMALL(AB$76:AB$78,AA78),\"\")","v":""}]
[]
[null,null,null,null,null,null,null,null,null,null,null,null,null,null,null,null,null,null,null,null,null,null,null,"Duomenys \"helper\" stulpeliams",null,"Helper stulpeliai"]
[null,null,null,null,null,null,null,null,null,null,null,null,null,null,null,null,null,null,null,null,null,"Dropdown'o pasirinkimai",null,"Transporto rūšis","ŠESD emisija, t",null,"H1","H2","H3"]
[null,null,null,null,null,null,null,null,null,null,null,null,null,null,null,null,null,null,null,null,null,"Kelių transportas",null,"Kelių transportas",181.72,null,1,{"$f":"IF(X82=N$22,AA82,\"\")","v":1},{"$f":"IFERROR(SMALL(AB$82:AB$84,AA82),\"\")","v":1}]
[null,null,null,null,null,null,null,null,null,null,null,null,null,null,null,null,null,null,null,null,null,"Geležinkelių transportas",null,"Geležinkelių transportas",5.65,null,2,{"$f":"IF(X83=N$22,AA83,\"\")","v":""},{"$f":"IFERROR(SMALL(AB$82:AB$83,AA83),\"\")","v":""}]
[null,null,null,null,null,null,null,null,null,null,null,null,null,null,null,null,null,null,null,null,null,"Vidaus vandenų transportas",null,"Vidaus vandenų transportas",47.35,null,3,{"$f":"IF(X84=N$22,AA84,\"\")","v":""},{"$f":"IFERROR(SMALL(AB$82:AB$83,AA84),\"\")","v":""}]
[]
[]
[null,null,null,null,null,null,null,null,null,null,null,null,null,null,null,null,null,null,null,null,null,null,null,"Duomenys \"helper\" stulpeliams",null,"Helper stulpeliai"]
[null,null,null,null,null,null,null,null,null,null,null,null,null,null,null,null,null,null,null,null,null,null,null,"Transporto rūšis","Dyzelino sunaudojimas, t",null,"H1","H2","H3"]
[null,null,null,null,null,null,null,null,null,null,null,null,null,null,null,null,null,null,null,null,null,"Kelių transportas",null,"Kelių transportas",181.72,null,1,{"$f":"IF(X89=N$26,AA89,\"\")","v":""},{"$f":"IFERROR(SMALL(AB$89:AB$91,AA89),\"\")","v":2}]
[null,null,null,null,null,null,null,null,null,null,null,null,null,null,null,null,null,null,null,null,null,"Geležinkelių transportas",null,"Geležinkelių transportas",5.65,null,2,{"$f":"IF(X90=N$26,AA90,\"\")","v":2},{"$f":"IFERROR(SMALL(AB$89:AB$91,AA90),\"\")","v":""}]
[null,null,null,null,null,null,null,null,null,null,null,null,null,null,null,null,null,null,null,null,null,"Vidaus vandenų transportas",null,"Vidaus vandenų transportas",47.35,null,3,{"$f":"IF(X91=N$26,AA91,\"\")","v":""},{"$f":"IFERROR(SMALL(AB$89:AB$91,AA91),\"\")","v":""}]
[]
[null,null,null,null,null,null,null,null,null,null,null,null,null,null,null,null,null,null,null,null,null,null,null,"Duomenys \"helper\" stulpeliams",null,"Helper stulpeliai"]
[null,null,null,null,null,null,null,null,null,null,null,null,null,null,null,null,null,null,null,null,null,"Dropdown'o pasirinkimai",null,"Transporto rūšis","ŠESD emisija, t",null,"H1","H2","H3"]
[null,null,null,null,null,null,null,null,null,null,null,null,null,null,null,null,null,null,null,null,null,"Kelių transportas",null,"Kelių transportas",181.72,null,1,{"$f":"IF(X95=O$22,AA95,\"\")","v":1},{"$f":"IFERROR(SMALL(AB$95:AB$97,AA95),\"\")","v":1}]
[null,null,null,null,null,null,null,null,null,null,null,null,null,null,null,null,null,null,null,null,null,"Geležinkelių transportas",null,"Geležinkelių transportas",5.65,null,2,{"$f":"IF(X96=O$22,AA96,\"\")","v":""},{"$f":"IFERROR(SMALL(AB$95:AB$96,AA96),\"\")","v":""}]
[null,null,null,null,null,null,null,null,null,null,null,null,null,null,null,null,null,null,null,null,null,"Vidaus vandenų transportas",null,"Vidaus vandenų transportas",47.35,null,3,{"$f":"IF(X97=O$22,AA97,\"\")","v":""},{"$f":"IFERROR(SMALL(AB$95:AB$96,AA97),\"\")","v":""}]
[]
[]
[null,null,null,null,null,null,null,null,null,null,null,null,null,null,null,null,null,null,null,null,null,null,null,"Duomenys \"helper\" stulpeliams",null,"Helper stulpeliai"]
[null,null,null,null,null,null,null,null,null,null,null,null,null,null,null,null,null,null,null,null,null,null,null,"Transporto rūšis","Dyzelino sunaudojimas, t",null,"H1","H2","H3"]
[null,null,null,null,null,null,null,null,null,null,null,null,null,null,null,null,null,null,null,null,null,"Kelių transportas",null,"Kelių transportas",181.72,null,1,{"$f":"IF(X102=O$26,AA102,\"\")","v":""},{"$f":"IFERROR(SMALL(AB$102:AB$104,AA102),\"\")","v":2}]
[null,null,null,null,null,null,null,null,null,null,null,null,null,null,null,null,null,null,null,null,null,"Geležinkelių transportas",null,"Geležinkelių transportas",5.65,null,2,{"$f":"IF(X103=O$26,AA103,\"\")","v":2},{"$f":"IFERROR(SMALL(AB$102:AB$104,AA103),\"\")","v":""}]
[null,null,null,null,null,null,null,null,null,null,null,null,null,null,null,null,null,null,null,null,null,"Vidaus vandenų transportas",null,"Vidaus vandenų transportas",47.35,null,3,{"$f":"IF(X104=O$26,AA104,\"\")","v":""},{"$f":"IFERROR(SMALL(AB$102:AB$104,AA104),\"\")","v":""}]

{"sheet":"ATNAUJINIMAS","index":3,"n_rows":11,"n_cols":7,"rows_kept":11,"cut":false,"hidden":false,"merged":[[0,15,4,19],[2,4,3,6]]}
[]
[]
[]
[]
[null,null,null,null,"Atnaujinimo data","Administratorius","Pastabos"]
[null,null,null,null,"2024.03.01","AAA Aplinkos būklės analitikos centras","Pirmos versijos viešinimas"]
[null,null,null,null,"2025.12.19","AAA Aplinkos būklės analitikos centras","Versijos viešinimas"]
[]
[]
[]
[null,null,null,null," * - nuolat naujinama"]